Cogmind - Beta 13 @@@ ROGUE MODE // 2024.07.12 @ 22:12:33 Player: APerTAS Result: Destroyed by L-31 Rogue with Katana Performance ------------- Evolutions (2) 1000 Regions Visited (4) 800 Robots Destroyed (53) 265 Value Destroyed (1368) 1368 Prototype IDs (4) 80 Alien Tech Used (0) 0 Bonus (19) 19 TOTAL SCORE: 3532 Bonus ------- High Alert Combat Kills 19 Cogmind --------- Core Integrity 0/550 Matter 300/300 Energy 100/100 System Corruption 0% Temperature Cool (0) Movement Core (50) Location -8/Materials Parts ------- > --- POWER (1) -------- (None) > --- PROPULSION (3) --- (None) > --- UTILITY (5) ------ (None) > --- WEAPON (2) ------- (None) > --- INVENTORY (5) ---- Compact Wheel Light Armor Plating Beam Rifle Autogun Improved Assault Rifle Peak State ------------ > --- POWER ------------ Deuterium Engine > --- PROPULSION ------- Light Treads Light Treads Improved Treads > --- UTILITY ---------- Improved Heat Sink Medium Storage Unit Experimental Sensor Array Salvage Targeting Computer ECM Suite > --- WEAPON ----------- Pulse Rifle Improved Assault Rifle > --- INVENTORY -------- Improved Ion Engine Compact Wheel Core Shielding Light Armor Plating Beam Rifle Particle Gun Heavy Assault Rifle Autogun Datajack Enhanced Flamer [Rating: 30] Favorites ----------- Power Deuterium Engine Engine Deuterium Engine Propulsion Light Treads Treads Light Treads Wheel Compact Wheel Utility Medium Storage Unit Device Improved Heat Sink Storage Medium Storage Unit Processor Salvage Targeting Computer Protection Medium Armor Plating Weapon Grenade Launcher Energy Gun Spread Laser Ballistic Gun Improved Assault Rifle Launcher Grenade Launcher Special Weapon Enhanced Flamer Build | -11 -10 -10 -9 -8 ------- Run | Yrd Mat Min Mat Mat Slots Evolved 4 | . . . 2 2 Power . | . . . . . Propulsion 1 | . . . . 1 Utility 3 | . . . 2 1 Weapon . | . . . . . Parts Attached 45 | 6 10 3 20 6 Power 4 | 1 . 1 1 1 Engine 4 | 1 . 1 1 1 Core . | . . . . . Reactor . | . . . . . Propulsion 11 | 2 2 . 6 1 Treads 8 | 2 2 . 3 1 Leg . | . . . . . Wheel 3 | . . . 3 . Hover . | . . . . . Flight . | . . . . . Utility 12 | 1 3 1 5 2 Device 4 | . 1 . 1 2 Storage 2 | 1 1 . . . Processor 1 | . . . 1 . Hackware . | . . . . . Protection 5 | . 1 1 3 . Artifact . | . . . . . Weapon 18 | 2 5 1 8 2 Energy Gun 5 | . 1 1 2 1 Energy Cannon . | . . . . . Ballistic Gun 8 | 2 3 . 2 1 Ballistic Cannon . | . . . . . Launcher 4 | . 1 . 3 . Special Weapon 1 | . . . 1 . Impact Weapon . | . . . . . Slashing Weapon . | . . . . . Piercing Weapon . | . . . . . Special Melee Weapon . | . . . . . Unidentified Prototypes 1 | . . . 1 . Parts Lost 14 | . . 2 8 4 Power 2 | . . . 1 1 Propulsion 5 | . . . 3 2 Utility 3 | . . 1 1 1 Weapon 4 | . . 1 3 . Highest Loss Streak 4 | . . 1 4 4 To Critical Strikes . | . . . . . Average Slot Usage (%) 97 | . 99 99 96 92 Engine 11 | . 14 14 10 8 Treads 21 | . 27 28 14 24 Wheel 3 | . . . 7 . Device 7 | . 1 . 11 24 Storage 12 | . 14 14 11 8 Processor 4 | . . . 9 8 Protection 10 | . 12 14 10 . Energy Gun 8 | . . 13 9 8 Ballistic Gun 8 | . 19 . 7 8 Launcher 7 | . 7 14 4 . Naked Turns 19 | . . . . 19 Heaviest Build 34 | 13 21 27 34 30 Greatest Support 63 | 40 40 40 43 63 Greatest Overweight (x) 1 | 1 . . 1 . Average Overweight (x) . | . . . . . Largest Inventory Capacity 10 | 8 10 10 10 10 Average Capacity 9 | 6 9 10 10 9 Most Carried 10 | 5 10 10 10 10 Average Carried 8 | 3 8 9 8 9 Final Capacity 10 | 8 10 10 10 5 Final Carried 10 | 4 10 10 10 5 Class Distribution -------------------- 93% | Mutant 6% | Scavenger-Mutant Dominant Class ---------------- Mutant | -10/Materials Mutant | -10/Mines Mutant | -9/Materials Mutant | -8/Materials Resources | -11 -10 -10 -9 -8 ----------- Run | Yrd Mat Min Mat Mat Matter Collected 1248 | 205 304 64 561 114 Remotely . | . . . . . Salvage Created 1200 | . 341 93 554 212 Parts 99 | . 35 13 40 11 Haulers Intercepted 1 | . 1 . . . Recyclers Shooed . | . . . . . Parts Field Recycled . | . . . . . Retrieved Matter . | . . . . . Parts Self-Destructed . | . . . . . Prevented . | . . . . . Kills | -11 -10 -10 -9 -8 ------- Run | Yrd Mat Min Mat Mat Combat Hostiles Destroyed 42 | . 14 8 14 6 Guns 22 | . 4 2 10 6 AOE 20 | . 10 6 4 . Classes Destroyed 9 | . 5 . 3 1 Worker 4 | . 4 . . . Builder 2 | . . . 2 . Hauler 1 | . 1 . . . Operator 1 | . . . 1 . Watcher 3 | . 1 . 1 1 Swarmer 15 | . 6 6 . 3 Grunt 20 | . 8 2 8 2 Duelist 1 | . . . . 1 Sentry 6 | . . . 6 . Best Kill Streak 8 | . 8 3 4 3 Combat Bots Only 6 | . 6 3 3 3 Max Kills in Single Turn 3 | . 3 3 1 1 Gunslinging 1 | . 1 . . . Exploded 2 | . 2 2 1 . Melee . | . . . . . Uniques/NPCs Destroyed . | . . . . . Combat | -11 -10 -10 -9 -8 -------- Run | Yrd Mat Min Mat Mat Hostile Shots Fired 220 | . 59 20 75 66 Missed 77 | . 22 7 25 23 Damage Taken 2647 | . 419 239 969 1020 Core 770 | . 60 22 126 562 Absorbed by Shields . | . . . . . Redirected to Shielding 50 | . 42 8 . . Regen/Repaired (Parts) 71 | . . . 71 . Core Remaining (%) 78 | 100 . 67 68 . Volleys Fired 94 | . 25 9 40 20 Largest 2 | . 2 2 2 2 Hottest 98 | . 50 70 98 86 Shots Fired 179 | . 44 17 78 40 Gun 141 | . 32 8 61 40 Cannon . | . . . . . Launcher 38 | . 12 9 17 . Special . | . . . . . Kinetic 83 | . 32 . 31 20 Thermal 50 | . . . 30 20 Explosive 38 | . 12 9 17 . Electromagnetic 8 | . . 8 . . Robot Hit Streak 11 | . 6 7 11 9 Robot Miss Streak 4 | . 4 3 4 3 Penetration Max . | . . . . . Secondary Targets 4 | . 1 . . 3 Max Gunslinging Chain 1 | . 1 . . 1 Shots Hit Robots 120 | . 26 11 58 25 Core Hits 89 | . 31 8 38 12 Critical Kills . | . . . . . Critical Parts Destroyed . | . . . . . Critical Strikes 2 | . . . 1 1 Burn 2 | . . . 1 1 Melee Attacks . | . . . . . Impact . | . . . . . Slashing . | . . . . . Piercing . | . . . . . Sneak Attacks . | . . . . . Combat Hostiles . | . . . . . Follow-up Attacks . | . . . . . Damage Inflicted 3321 | . 1068 514 1322 417 Guns 1487 | . 285 69 716 417 Cannons . | . . . . . Explosions 1834 | . 783 445 606 . Melee . | . . . . . Ramming . | . . . . . Kinetic 886 | . 285 . 405 196 Thermal 641 | . . 44 376 221 Explosive 1725 | . 783 401 541 . Electromagnetic 69 | . . 69 . . Impact . | . . . . . Slashing . | . . . . . Piercing . | . . . . . Highest Corruption 1 | . . . 1 . Average Corruption 1 | . . . 1 . Corruption Purged . | . . . . . Corruption Blocked . | . . . . . Effects 2 | . . . 2 . Message Errors 1 | . . . 1 . Energy Discharges 1 | . . . 1 . Overload Shots . | . . . . . Overflow Damage 181 | . 5 49 127 . Projectiles . | . . . . . Explosions 181 | . 5 49 127 . Melee . | . . . . . Knockbacks . | . . . . . Impact . | . . . . . Kinetic . | . . . . . Secondary . | . . . . . Self-Inflicted Damage 450 | . 48 94 308 . Shots 13 | . 2 4 7 . Rammed . | . . . . . Targets Rammed . | . . . . . Kicked . | . . . . . Crushed . | . . . . . Highest Temperature 144 | . 8 144 23 16 Average Temperature 34 | . 4 60 8 8 Received Heat Transfer 744 | . 153 63 312 216 Siege Activations . | . . . . . Robots Corrupted . | . . . . . Combat Hostiles . | . . . . . Parts Fried . | . . . . . Impact Corruptions . | . . . . . Robots Melted . | . . . . . Combat Hostiles . | . . . . . Parts Melted 1 | . . . 1 . Heat Transferred 1426 | . . 50 821 555 Parts Sabotaged . | . . . . . Parts Stolen . | . . . . . Parts Stripped . | . . . . . Power Chain Reactions . | . . . . . Alert | -11 -10 -10 -9 -8 ------- Run | Yrd Mat Min Mat Mat Peak Influence 432 | . 319 432 381 279 Initial 124 | . . 124 90 117 Average 210 | . 134 268 243 195 Maximum Alert Level 2 | . 1 2 1 1 Low Security (%) 43 | 100 65 29 33 44 Level 1 51 | . 34 50 66 55 Level 2 4 | . . 20 . . Level 3 . | . . . . . Level 4 . | . . . . . Level 5 . | . . . . . High Security . | . . . . . Max Security . | . . . . . Squads Dispatched 5 | . 2 . 3 . Investigation 2 | . 2 . . . Extermination . | . . . . . Reinforcement 3 | . . . 3 . Assault . | . . . . . Garrison . | . . . . . Intercept . | . . . . . Searches Triggered . | . . . . . Construction Impeded . | . . . . . Haulers Reinforced . | . . . . . Active Scanning Responses . | . . . . . Cargo Convoy Interrupts . | . . . . . Stealth | -11 -10 -10 -9 -8 --------- Run | Yrd Mat Min Mat Mat Distress Signals 3 | . 1 . 1 1 Communications Jammed . | . . . . . Distress Signals . | . . . . . Times Spotted 57 | . 17 8 18 14 Peak Tracking Total 5 | . 5 3 4 5 Tactical Retreats 1 | . . . 1 . Traps | -11 -10 -10 -9 -8 ------- Run | Yrd Mat Min Mat Mat Traps Triggered 2 | . 2 . . . Indirectly . | . . . . . Trap Hack Attempts . | . . . . . Triggered . | . . . . . Disarmed . | . . . . . Reprogrammed . | . . . . . Reused . | . . . . . Traps Extracted . | . . . . . Installed . | . . . . . Triggered . | . . . . . Machines | -11 -10 -10 -9 -8 ---------- Run | Yrd Mat Min Mat Mat Machines Disabled 9 | . 3 4 2 . Max in Single Turn 4 | . 1 4 1 . Machines Repaired . | . . . . . Machines Dismantled . | . . . . . Machines Sabotaged . | . . . . . Overloaded Fab Kills . | . . . . . Hacking | -11 -10 -10 -9 -8 --------- Run | Yrd Mat Min Mat Mat Machines Accessed 6 | . 3 . 3 . Terminals 3 | . 2 . 1 . Fabricators . | . . . . . Repair Stations 1 | . . . 1 . Recycling Units 1 | . 1 . . . Scanalyzers 1 | . . . 1 . Garrison Access . | . . . . . Total Hacks 14 | . 6 . 8 . Successful 11 | . 5 . 6 . Failed 3 | . 1 . 2 . Catastrophic . | . . . . . Database Lockouts . | . . . . . Manual 5 | . 4 . 1 . Terminals 8 | . 5 . 3 . Fabricators . | . . . . . Repair Stations 2 | . . . 2 . Recycling Units 1 | . 1 . . . Scanalyzers 3 | . . . 3 . Garrison Access . | . . . . . Terminal Hacks 5 | . 3 . 2 . Prototype ID Bank 1 | . 1 . . . Branch Access Points 1 | . 1 . . . Locate Traps 1 | . 1 . . . Dispatch Records 1 | . . . 1 . Zone Layout 1 | . . . 1 . Fabricator Hacks . | . . . . . Repair Station Hacks 2 | . . . 2 . Scan Component 1 | . . . 1 . Repair 1 | . . . 1 . Recycling Unit Hacks . | . . . . . Scanalyzer 2 | . . . 2 . Insert Component 1 | . . . 1 . Analyze 1 | . . . 1 . Garrison Access Hacks . | . . . . . Unauthorized Hacks 2 | . 2 . . . Terminals 1 | . 1 . . . Assimilate 1 | . 1 . . . Fabricators . | . . . . . Repair Stations . | . . . . . Recycling Units 1 | . 1 . . . Tunnel 1 | . 1 . . . Scanalyzers . | . . . . . Garrison Access . | . . . . . Data Cores Recovered . | . . . . . Used . | . . . . . Hacking Detections 3 | . 1 . 2 . Full Trace Events . | . . . . . Feedback Events . | . . . . . Feedback Blocked . | . . . . . Robot Schematics Acquired . | . . . . . Robots Built . | . . . . . Authchips . | . . . . . Time . | . . . . . Total Robot Build Rating . | . . . . . Part Schematics Acquired 1 | . . . 1 . Parts Built . | . . . . . Authchips . | . . . . . Time . | . . . . . Total Part Build Rating . | . . . . . Parts Repaired 1 | . . . 1 . Time 26 | . . . 26 . Parts Recycled . | . . . . . Recycled Matter . | . . . . . Retrieved Matter . | . . . . . Retrieved Components . | . . . . . Parts Scanalyzed 1 | . . . 1 . Part Schematics Acquired 1 | . . . 1 . Parts Damaged . | . . . . . Bothacking | -11 -10 -10 -9 -8 ------------ Run | Yrd Mat Min Mat Mat Used RIF Installer . | . . . . . Robots Hacked . | . . . . . Non-combat . | . . . . . Combat . | . . . . . Robot Hacks Applied . | . . . . . Relay Couplers Released . | . . . . . Fabnet Peak Effective % . | . . . . . Robots Rewired . | . . . . . Allies Hacked . | . . . . . Hacks Repelled . | . . . . . Allies | -11 -10 -10 -9 -8 -------- Run | Yrd Mat Min Mat Mat Total Allies . | . . . . . Largest Group . | . . . . . Highest-Rated Group . | . . . . . Highest-Rated Ally . | . . . . . Total Orders . | . . . . . Ally Attacks . | . . . . . Total Damage . | . . . . . Kills . | . . . . . Allies Corrupted . | . . . . . Allies Melted . | . . . . . Intel | -11 -10 -10 -9 -8 ------- Run | Yrd Mat Min Mat Mat Robot Analysis Total . | . . . . . Derelict Logs Recovered 1 | . . 1 . . Drone Launches . | . . . . . Drone Recoveries . | . . . . . Exploration | -11 -10 -10 -9 -8 ------------- Run | Yrd Mat Min Mat Mat Turns Passed 2890 | 115 667 706 1128 274 Spaces Moved 1653 | 74 352 418 698 111 Core 22 | 22 . . . . Treads 1333 | 52 352 418 400 111 Legs . | . . . . . Wheels 298 | . . . 298 . Hover . | . . . . . Flight . | . . . . . Fastest Speed 50 | 50 160 160 100 160 Average Speed 148 | 134 160 160 134 160 Slowest Speed 240 | 160 160 160 240 160 Overloaded Moves . | . . . . . Propulsion Burnouts . | . . . . . Robots Hopped . | . . . . . Cave-ins Triggered . | . . . . . Exploration Rate (%) 37 | 4 52 85 40 8 Regions Visited 4 Branch Regions 1 Pre-discovered Areas 1 | . 1 . . . Known Exits Taken 1 | . 1 . . . Unknown Exits Taken 3 | 1 . 1 1 . Scrap Searched 1 | . . 1 . . Spaces Dug . | . . . . . Terrain Destroyed 241 | . 50 68 123 . Melee . | . . . . . Projectile . | . . . . . AOE 241 | . 50 68 123 . Terrain Rammed . | . . . . . Walls Destroyed . | . . . . . Machines Disabled . | . . . . . Actions | -11 -10 -10 -9 -8 --------- Run | Yrd Mat Min Mat Mat Total 1919 | 89 413 439 809 169 Wait 59 | . 2 4 27 26 Move 1649 | 73 351 417 697 111 Hop . | . . . . . Pick Up 53 | 10 17 4 18 4 Fast Attach . | . . . . . Attach 24 | 6 3 2 11 2 Detach . | . . . . . Swap 21 | . 7 1 9 4 Drop 19 | . 8 2 7 2 Fire 94 | . 25 9 40 20 Melee . | . . . . . Ram . | . . . . . Kick . | . . . . . Crush . | . . . . . Escape Stasis . | . . . . . Rewire . | . . . . . Trap . | . . . . . Miscellaneous . | . . . . . Route ------- -11/Scrapyard -10/Materials (discovered 2 exits: *Mat / *Min) -10/Mines -9/Materials -8/Materials History --------- Turn | Location | Event 30 | -11/Scrapyard | Discovered new exit (range 15) 116 | -11/Scrapyard | Entered Materials 269 | -10/Materials | Identified exit to Mines 300 | -10/Materials | Build established: Mutant 652 | -10/Materials | Discovered new exit (range 16) 783 | -10/Materials | Entered Mines 860 | -10/Mines | Found a damaged Exp. Sensor Array with a note attached 864 | -10/Mines | Found Prototype Device 1119 | -10/Mines | Discovered new exit (range 4) 1152 | -10/Mines | Learned Materials non-interactive machine intel 1298 | -10/Mines | Received a Rocket Launcher from a helpful Derelict 1326 | -10/Mines | A weapon hastily lodged in a ceiling crevice suddenly fell to the ground 1489 | -10/Mines | Entered Materials 1489 | -9/Materials | Evolved 2 slots: Utility x2 1490 | -9/Materials | Loaded intel: 41 non-interactive machine locations 1826 | -9/Materials | Lost 4 parts (2n2w) 2168 | -9/Materials | Identified Exp. Sensor Array 2369 | -9/Materials | Repaired Lgt. Armor Plating 2386 | -9/Materials | Discovered new exit (range 10) 2617 | -9/Materials | Entered another Materials area 2617 | -8/Materials | Evolved 2 slots: Propulsion x1, Utility x1 2872 | -8/Materials | Released all parts (7) 2882 | -8/Materials | Core integrity fell below 50% 2887 | -8/Materials | Core integrity fell below 20% 2891 | -8/Materials | Destroyed by L-31 Rogue with Katana Last Messages --------------- W-25 Informer suffers critical hit (Burn). R-06 Scavenger collects Lgt. Nuclear Core. Acquired 24 matter. Acquired 10 matter. Lgt. Treads destroyed. Deuterium Engine destroyed. ECM Suite destroyed. Released Imp. Heat Sink. Released Med. Storage Unit. Released Salvage Targeting Computer. Released Imp. Treads. Released Exp. Sensor Array. Released Pulse Rifle. Released Hvy. Assault Rifle. T-07 Excavator destroyed. U-05 Engineer builds a Wall. Penetrated by Slug. R-06 Scavenger destroyed. U-05 Engineer builds a Wall. K-01 Serf collects debris. Map ----- +----------------------------------------------------+ | ????????????????# ###+######???????????????????? | | ????????????????# #?????????????????????? | | ????????????????# #?????????????????????? | | ????????????????# #?????????????????????? | | ????????????????######## #?????????????????????? | | ???????????????????????# #?????????????????????? | | ???????????????????????# #?????????###?????????? | | ????????????# ########## ####### ##????????? | | ?????????? ???????? | | ?????????? ???????? | | ?????????? ???????? | | ??????????? ########### ####### #?????????? | | ???????????????????????# #############?????????? | | ???????????????????????# # #????????????? | | ???????????????????????# + #????????????? | | ???????????????????????# # % #????????????? | | ???????????????????????# # !! #????????????? | | ???????????????????????# # !! #????????????? | | ???????????????????????# #!!!% = #????????????? | | ???????????????????????# %%# #????????????? | | ???????????????????????# ! # #????????????? | | ???????????????????????#!%*# % #????????????? | | ???????????????????????# * ##########????????????? | | ???????????????????????#%%%#?????????????????????? | | ???????????????????????#=!%#?????????????????????? | | ???????????????????????#/@*#?????????????????????? | | ???????????????????????#l![#?????????????????????? | | ???????????????????????#[![#?????????????????????? | | ???????????????????????# g%#?????????????????????? | | ?????????????????????? u#?????????????????????? | | ????????????????????? #?????????????????????? | | ????????????????????? k#?????????????????????? | | ????????????????????####u #?????????????????????? | | ???????????????????????# kg#?????????????????????? | | ???????????????????????# #?????????????????????? | | ???????????????????????# #?????????????????????? | | ???????????????????????#H #?????????????????????? | | ???????????????????????#u #?????????????????????? | | ??????????????????????? #?????????????????????? | | ??????????????????????? ??????????????????????? | | ??????????????????????? ??????????????????????? | | ?????????????????????????????????????????????????? | | ?????????????????????????????????????????????????? | | ?????????????????????????????????????????????????? | | ?????????????????????????????????????????????????? | | ?????????????????????????????????????????????????? | | ?????????????????????????????????????????????????? | | ?????????????????????????????????????????????????? | | ?????????????????????????????????????????????????? | | ?????????????????????????????????????????????????? | +----------------------------------------------------+ Best States ------------- Heat Dissipation 45 Coolant Potential 50 Energy Generation 14 Energy Capacity 275 Matter Stores 300 Matter Capacity 300 Sight Range 16 Robot Scan Range 20 Terrain Scan Density 10 ECM Strength 1 Armor Coverage 225 Propulsion Shielding 33 Evasion (%) 50 Recoil Reduction 3 Salvage Targeting 1 Item Schematics ----------------- Exp. Sensor Array | -9/Materials | Scanalyzed Robot Schematics ------------------ None Fabricated ------------ Nothing Alien Tech Used ----------------- None Achievements -------------- Safety First Challenges ------------ None Game ------ Seed RegenerativeHardenedHumpback Manual? 0 Play Time 00:25:53 Cumulative 10.8 hours Start 2024.07.12 @ 21:47:22 End 2024.07.12 @ 22:12:33 Sessions 1 Manual Loads 0 Difficulty Rogue Special Mode None Game No. 27 Rogue 27 Adventurer 0 Explorer 0 Win Type - Total 0 Types 0/0/0/0/0/0/0/0/0 Lore% 17 Gallery% 15 Achievement% 16 Wizard Run 0 Options --------- Layout 1 ASCII 0 Keyboard 0 Movement Arrows Keybinds 0 Fullscreen 1 Font 28/Dina Map View 50x43 Zoom Use 0% Tactical HUD 0 Map Filters NONE Filters NONE Steam 1 RUN: 7e9f96e2-7157-4259-9413-96ff2704a534